Cogmind - Beta 13 @@@ ROGUE MODE // 2024.05.03 @ 12:54:29 Player: Mylar Result: Destroyed by Y-45 Defender with Heavy Assault Rifle Performance ------------- Evolutions (1) 500 Regions Visited (2) 400 Robots Destroyed (16) 80 Value Destroyed (263) 263 Prototype IDs (2) 40 Alien Tech Used (0) 0 Bonus (0) 0 TOTAL SCORE: 1283 Bonus ------- None Cogmind --------- Core Integrity 0/400 Matter 300/300 Energy 100/100 System Corruption 1% Temperature Cool (15) Movement Core (200) Ox3 Location -9/Materials Parts ------- > --- POWER (1) -------- (None) > --- PROPULSION (3) --- (None) > --- UTILITY (3) ------ Medium Storage Unit > --- WEAPON (2) ------- (None) > --- INVENTORY (10) --- Ion Engine Aluminum Leg Aluminum Leg Improved Heat Sink Large Storage Unit Sensor Array Signal Interpreter Peak State ------------ > --- POWER ------------ Heavy Ion Engine > --- PROPULSION ------- Aluminum Leg Aluminum Leg Aluminum Leg > --- UTILITY ---------- Medium Storage Unit Structural Scanner Sensor Array > --- WEAPON ----------- Small Laser Plasma Cutter > --- INVENTORY -------- Ion Engine Improved Heat Sink Large Storage Unit Signal Interpreter [Rating: 12] Favorites ----------- Power Ion Engine Engine Ion Engine Propulsion Aluminum Leg Leg Aluminum Leg Utility Medium Storage Unit Device Seismic Detector Storage Medium Storage Unit Protection Light Armor Plating Weapon Assault Rifle Energy Gun Small Laser Ballistic Gun Assault Rifle Special Weapon Plasma Cutter Build | -11 -10 -9 ------- Run | Yrd Mat Mat Slots Evolved 2 | . . 2 Power . | . . . Propulsion 1 | . . 1 Utility 1 | . . 1 Weapon . | . . . Parts Attached 28 | 7 9 12 Power 6 | 1 1 4 Engine 6 | 1 1 4 Core . | . . . Reactor . | . . . Propulsion 9 | 2 3 4 Treads . | . . . Leg 9 | 2 3 4 Wheel . | . . . Hover . | . . . Flight . | . . . Utility 7 | 2 2 3 Device 4 | 1 . 3 Storage 2 | 1 1 . Processor . | . . . Hackware . | . . . Protection 1 | . 1 . Artifact . | . . . Weapon 6 | 2 3 1 Energy Gun 1 | . 1 . Energy Cannon . | . . . Ballistic Gun 4 | 2 2 . Ballistic Cannon . | . . . Launcher . | . . . Special Weapon 1 | . . 1 Impact Weapon . | . . . Slashing Weapon . | . . . Piercing Weapon . | . . . Special Melee Weapon . | . . . Unidentified Prototypes 2 | . . 2 Parts Lost 16 | . 7 9 Power 2 | . . 2 Propulsion 4 | . 1 3 Utility 4 | . 2 2 Weapon 6 | . 4 2 Highest Loss Streak 6 | . 4 6 To Critical Strikes . | . . . Average Slot Usage (%) 89 | . 95 78 Engine 12 | . 14 9 Leg 27 | . 26 29 Device 13 | . 11 16 Storage 12 | . 14 11 Protection 1 | . 1 . Energy Gun 3 | . 1 7 Ballistic Gun 15 | . 25 . Special Weapon 1 | . . 3 Naked Turns . | . . . Heaviest Build 22 | 15 21 22 Greatest Support 30 | 20 20 30 Greatest Overweight (x) 6 | 4 2 6 Average Overweight (x) . | . . . Largest Inventory Capacity 10 | 8 10 10 Average Capacity 9 | 7 9 10 Most Carried 10 | 2 10 7 Average Carried 6 | 1 7 5 Final Capacity 10 | 8 10 10 Final Carried 7 | 2 6 7 Class Distribution -------------------- 71% | Mutant 28% | Scavenger-Mutant Dominant Class ---------------- Mutant | -10/Materials Scavenger-Mutant | -9/Materials Resources | -11 -10 -9 ----------- Run | Yrd Mat Mat Matter Collected 720 | 268 367 85 Remotely . | . . . Salvage Created 436 | 80 330 26 Parts 35 | 9 26 . Haulers Intercepted 1 | . 1 . Recyclers Shooed 1 | . 1 . Parts Field Recycled . | . . . Retrieved Matter . | . . . Parts Self-Destructed . | . . . Prevented . | . . . Kills | -11 -10 -9 ------- Run | Yrd Mat Mat Combat Hostiles Destroyed 7 | . 7 . Guns 7 | . 7 . Classes Destroyed 6 | 1 5 . Worker 2 | . 1 1 Tunneler 4 | 4 . . Hauler 1 | . 1 . Watcher 2 | . 2 . Swarmer 3 | . 3 . Grunt 4 | . 4 . Best Kill Streak 3 | 2 3 1 Combat Bots Only 3 | . 3 . Max Kills in Single Turn 2 | 1 2 1 Gunslinging . | . . . Exploded . | . . . Melee . | . . . Uniques/NPCs Destroyed . | . . . Combat | -11 -10 -9 -------- Run | Yrd Mat Mat Hostile Shots Fired 247 | . 119 128 Missed 64 | . 34 30 Damage Taken 2304 | . 1044 1260 Core 597 | . 196 401 Absorbed by Shields 36 | . . 36 Core Remaining (%) 60 | 100 21 . Volleys Fired 68 | 8 53 7 Largest 2 | 2 2 2 Hottest 60 | 40 60 60 Shots Fired 130 | 16 102 12 Gun 123 | 16 102 5 Cannon . | . . . Launcher . | . . . Special 7 | . . 7 Kinetic 113 | 16 97 . Thermal 17 | . 5 12 Explosive . | . . . Electromagnetic . | . . . Robot Hit Streak 8 | 3 6 8 Robot Miss Streak 5 | 2 5 3 Penetration Max . | . . . Secondary Targets 1 | . 1 . Max Gunslinging Chain 1 | . 1 . Shots Hit Robots 77 | 9 59 9 Core Hits 34 | 4 26 4 Critical Kills . | . . . Critical Parts Destroyed 1 | . 1 . Critical Strikes 1 | . 1 . Destroy 1 | . 1 . Melee Attacks . | . . . Impact . | . . . Slashing . | . . . Piercing . | . . . Sneak Attacks . | . . . Combat Hostiles . | . . . Follow-up Attacks . | . . . Damage Inflicted 978 | 118 743 117 Guns 902 | 118 743 41 Cannons . | . . . Explosions 26 | . . 26 Melee . | . . . Ramming . | . . . Kinetic 830 | 118 712 . Thermal 122 | . 31 91 Explosive . | . . . Electromagnetic 26 | . . 26 Impact . | . . . Slashing . | . . . Piercing . | . . . Highest Corruption 1 | . . 1 Average Corruption 1 | . . 1 Corruption Purged . | . . . Corruption Blocked . | . . . Effects 3 | . . 3 Data Loss (minor) 1 | . . 1 Data Loss (major) 1 | . . 1 Alerts 1 | . . 1 Overload Shots . | . . . Overflow Damage . | . . . Projectiles . | . . . Explosions . | . . . Melee . | . . . Knockbacks . | . . . Impact . | . . . Kinetic . | . . . Secondary . | . . . Self-Inflicted Damage . | . . . Shots . | . . . Rammed . | . . . Targets Rammed . | . . . Kicked . | . . . Crushed . | . . . Highest Temperature 98 | . 98 8 Average Temperature 24 | . 26 3 Received Heat Transfer 1097 | . 540 557 Siege Activations . | . . . Robots Corrupted . | . . . Combat Hostiles . | . . . Parts Fried . | . . . Impact Corruptions . | . . . Robots Melted . | . . . Combat Hostiles . | . . . Parts Melted . | . . . Heat Transferred 360 | . 75 285 Parts Sabotaged . | . . . Parts Stolen . | . . . Parts Stripped . | . . . Power Chain Reactions . | . . . Alert | -11 -10 -9 ------- Run | Yrd Mat Mat Peak Influence 242 | 20 242 101 Initial 13 | . 13 . Average 77 | 9 122 38 Maximum Alert Level 1 | . 1 . Low Security (%) 98 | 100 96 100 Level 1 1 | . 3 . Level 2 . | . . . Level 3 . | . . . Level 4 . | . . . Level 5 . | . . . High Security . | . . . Max Security . | . . . Squads Dispatched 2 | . 1 1 Investigation 2 | . 1 1 Extermination . | . . . Reinforcement . | . . . Assault . | . . . Garrison . | . . . Intercept . | . . . Searches Triggered . | . . . Construction Impeded . | . . . Haulers Reinforced . | . . . Active Scanning Responses . | . . . Cargo Convoy Interrupts . | . . . Stealth | -11 -10 -9 --------- Run | Yrd Mat Mat Distress Signals 4 | . 1 3 Communications Jammed . | . . . Distress Signals . | . . . Times Spotted 22 | . 14 8 Peak Tracking Total 7 | . 3 7 Tactical Retreats 1 | . 1 . Traps | -11 -10 -9 ------- Run | Yrd Mat Mat Traps Triggered 1 | . 1 . Indirectly . | . . . Trap Hack Attempts . | . . . Triggered . | . . . Disarmed . | . . . Reprogrammed . | . . . Reused . | . . . Traps Extracted . | . . . Installed . | . . . Triggered . | . . . Machines | -11 -10 -9 ---------- Run | Yrd Mat Mat Machines Disabled 2 | . . 2 Max in Single Turn 2 | . . 2 Machines Repaired . | . . . Machines Dismantled . | . . . Machines Sabotaged . | . . . Overloaded Fab Kills . | . . . Hacking | -11 -10 -9 --------- Run | Yrd Mat Mat Machines Accessed 4 | . . 4 Terminals 3 | . . 3 Fabricators . | . . . Repair Stations . | . . . Recycling Units . | . . . Scanalyzers 1 | . . 1 Garrison Access . | . . . Total Hacks 19 | . . 19 Successful 11 | . . 11 Failed 8 | . . 8 Catastrophic . | . . . Database Lockouts . | . . . Manual 10 | . . 10 Terminals 12 | . . 12 Fabricators . | . . . Repair Stations . | . . . Recycling Units . | . . . Scanalyzers 7 | . . 7 Garrison Access . | . . . Terminal Hacks 3 | . . 3 Branch Access Points 1 | . . 1 Emergency Access Points 1 | . . 1 Terminal Index 1 | . . 1 Fabricator Hacks . | . . . Repair Station Hacks . | . . . Recycling Unit Hacks . | . . . Scanalyzer 4 | . . 4 Insert Component 2 | . . 2 Analyze 2 | . . 2 Garrison Access Hacks . | . . . Unauthorized Hacks 4 | . . 4 Terminals 4 | . . 4 Botnet 3 | . . 3 Operators 1 | . . 1 Fabricators . | . . . Repair Stations . | . . . Recycling Units . | . . . Scanalyzers . | . . . Garrison Access . | . . . Data Cores Recovered . | . . . Used . | . . . Hacking Detections 4 | . . 4 Full Trace Events 1 | . . 1 Feedback Events 1 | . . 1 Corruption 1 | . . 1 Feedback Blocked . | . . . Robot Schematics Acquired . | . . . Robots Built . | . . . Authchips . | . . . Time . | . . . Total Robot Build Rating . | . . . Part Schematics Acquired 2 | . . 2 Parts Built . | . . . Authchips . | . . . Time . | . . . Total Part Build Rating . | . . . Parts Repaired . | . . . Time . | . . . Parts Recycled . | . . . Recycled Matter . | . . . Retrieved Matter . | . . . Retrieved Components . | . . . Parts Scanalyzed 2 | . . 2 Part Schematics Acquired 2 | . . 2 Parts Damaged . | . . . Bothacking | -11 -10 -9 ------------ Run | Yrd Mat Mat Used RIF Installer . | . . . Robots Hacked . | . . . Non-combat . | . . . Combat . | . . . Robot Hacks Applied . | . . . Relay Couplers Released . | . . . Fabnet Peak Effective % . | . . . Robots Rewired . | . . . Allies Hacked . | . . . Hacks Repelled . | . . . Allies | -11 -10 -9 -------- Run | Yrd Mat Mat Total Allies . | . . . Largest Group . | . . . Highest-Rated Group . | . . . Highest-Rated Ally . | . . . Total Orders . | . . . Ally Attacks . | . . . Total Damage . | . . . Kills . | . . . Allies Corrupted . | . . . Allies Melted . | . . . Intel | -11 -10 -9 ------- Run | Yrd Mat Mat Robot Analysis Total . | . . . Derelict Logs Recovered . | . . . Drone Launches . | . . . Drone Recoveries . | . . . Exploration | -11 -10 -9 ------------- Run | Yrd Mat Mat Turns Passed 985 | 149 513 323 Spaces Moved 525 | 91 231 203 Core 21 | 12 . 9 Treads . | . . . Legs 504 | 79 231 194 Wheels . | . . . Hover . | . . . Flight . | . . . Fastest Speed 50 | 50 120 120 Average Speed 126 | 124 121 131 Slowest Speed 350 | 250 260 350 Overloaded Moves . | . . . Propulsion Burnouts . | . . . Robots Hopped . | . . . Cave-ins Triggered . | . . . Exploration Rate (%) 22 | 4 47 16 Regions Visited 2 Branch Regions . Pre-discovered Areas . | . . . Known Exits Taken . | . . . Unknown Exits Taken 2 | 1 1 . Scrap Searched . | . . . Spaces Dug . | . . . Terrain Destroyed 2 | . . 2 Melee . | . . . Projectile . | . . . AOE 2 | . . 2 Terrain Rammed . | . . . Walls Destroyed . | . . . Machines Disabled . | . . . Actions | -11 -10 -9 --------- Run | Yrd Mat Mat Total 710 | 108 367 235 Wait 61 | . 52 9 Move 523 | 90 230 203 Hop . | . . . Pick Up 18 | 3 14 1 Fast Attach 11 | 6 1 4 Attach 8 | 1 4 3 Detach 1 | . . 1 Swap 9 | . 4 5 Drop 10 | . 9 1 Fire 68 | 8 53 7 Melee . | . . . Ram . | . . . Kick . | . . . Crush . | . . . Escape Stasis . | . . . Rewire . | . . . Trap . | . . . Miscellaneous 1 | . . 1 Route ------- -11/Scrapyard -10/Materials (discovered 2 exits: *Mat / [*Min]) -9/Materials (discovered 1 exit: Min) History --------- Turn | Location | Event 22 | -11/Scrapyard | Discovered new exit (range 16) 150 | -11/Scrapyard | Entered Materials 271 | -10/Materials | Discovered new exit (range 16) 310 | -10/Materials | Build established: Mutant 609 | -10/Materials | Lost 4 parts (1n1u2w) 610 | -10/Materials | Core integrity fell below 50% 645 | -10/Materials | Discovered new exit (range 13) 663 | -10/Materials | Entered another Materials area 663 | -9/Materials | Evolved 2 slots: Propulsion x1, Utility x1 669 | -9/Materials | Lost 3 parts (1u2w) 717 | -9/Materials | Identified exit to Mines 934 | -9/Materials | Lost 3 parts (1p2w) 967 | -9/Materials | Core integrity fell below 50% 979 | -9/Materials | Core integrity fell below 20% 986 | -9/Materials | Destroyed by Y-45 Defender with Heavy Assault Rifle Last Messages --------------- 00895_ U-05 Engineer lays Concrete. 00898_ G-34 Mercenary destroyed. 00903_ Hvy. Ion Engine destroyed. 00905_ Acquired 15 matter. 00907_ Critical hit (Burn: +37). 00914_ K-01 Serf collects debris. 00938_ System corrupted: IFF burst signal emitted. 00939_ W-16 Scout sends out distress signal. 00942_ Aluminum Leg destroyed. 00945_ Acquired Shield Generator. 00953_ W-16 Scout sends out distress signal. 00954_ Aluminum Leg destroyed. 00956_ U-05 Engineer builds a Door. 00957_ Critical hit (Burn: +37). 00957_ Shield Generator destroyed. 00972_ Critical hit (Burn: +37). 00983_ Cld. Ion Engine destroyed. 00983_ M-13 Machinist repairs Welding Torch. 00986_ Structural Scanner destroyed. Map ----- +----------------------------------------------------+ | ???????????????????????????????## """ # ####### | | ???????????????????????????????## """ + ####### | | ???????????????????????????????## # ## """ | | ???????????????????????????????## "T" # ## """" | | ???????????????????????????????######### ## """" | | ?????????????????????????????? ######## # """" | | ?????????????????????????????? # "" # """ | | ?????????????????????????????? + T + | | ?????????????????????????????? # # | | ?????????????????????????????? ######## # | | ?????????????????????????????? ########## # | | ???????????????????????????+?????????#### # | | ???????????????????????????????????????## # | | ????????????????????????????????######### ##+### | | ????????????????????????????????######### ## ### | | ???????????????????????????????? # ### ## ##? | | ????????????????????????????????## ### ## ##? | | ????????????????????????????????## ### ## ### | | ????????????????????????????????## ### ## ### | | ????????????????????????????????## !!!### ## ! | | ????????????????????????????????## !! ### ## | | ????????????????## ?????########## ! ### ## | | ????????????????## ? ############# ### ## | | ????????????????##r ##### ### ## # | | ????????????????## Y #####+### # ! | | ????????????????## Y @ g # ### | | ????????????????## u ### # ### | | ????????????????##m ##### ### # ##? | | ????????????????## ? #######+##### # ##? | | ???????????????? ????## # # ##? | | ??>????????????????????## !% # # ##? | | ???????????????????????## # # ##? | | ??????????????????????### # """"""" # ##? | | ?????????o????????????### % # """"""" ##? | | ??????????????????????### # """"""" ####? | | ??????????????????????### # """"""" ##### | | ??????????????????????### # """"""" ##### | | ??????????????????????### + ## | | ???????????????????????########### ## | | ???????????????????????########### ## | | ????????????????????????????????#### ######/### ## | | ????????????????????????????????#### #### !## ## | | ??????????????????????????????????## #### # # | | ?????????????????????????????????? ## % # # | | ??????????????????????????????????? ?##! # # | | ??????????????????????????????????? ## ## ## | | ??????????????????????????????????? ## ## ## | | ??????????????????????????????????? ## ## ## | | ??????????????????????????????????? ### ! ## ## | | ??????????????????????????????????? ### ## ## | +----------------------------------------------------+ Best States ------------- Heat Dissipation 28 Energy Generation 14 Energy Capacity 280 Matter Stores 300 Matter Capacity 300 Sight Range 16 Robot Scan Range 14 Terrain Scan Density 10 Armor Coverage 150 Evasion (%) 55 Item Schematics ----------------- Cld. Ion Engine | -9/Materials | Scanalyzed Signal Interpreter | -9/Materials | Scanalyzed Robot Schematics ------------------ None Fabricated ------------ Nothing Alien Tech Used ----------------- None Achievements -------------- None Challenges ------------ None Game ------ Seed GhostDynamicChip Manual? 0 Play Time 00:22:36 Cumulative 102.8 hours Start 2024.05.03 @ 12:21:23 End 2024.05.03 @ 12:54:29 Sessions 1 Manual Loads 0 Difficulty Rogue Special Mode None Game No. 20 Rogue 20 Adventurer 0 Explorer 0 Win Type - Total 0 Types 0/0/0/0/0/0/0/0/0 Lore% 18 Gallery% 19 Achievement% 17 Wizard Run 0 Options --------- Layout 1 ASCII 0 Keyboard 0 Movement Mouse Keybinds 0 Fullscreen 1 Font 24/Smallcaps Map View 50x35 Zoom Use 0% Tactical HUD 1 Map Filters NONE Filters NONE Steam 1 RUN: 5b7b184e-5423-4d26-aed6-d637cee81532